[Event "Kragero Resort Chess A 2019"]
[Site "Kragero"]
[Date "2019.02.22"]
[Round "4.18"]
[White "Stray, Gunnar"]
[Black "Mikalsen, Erlend"]
[Result "0-1"]
[ECO "A47"]
[WhiteElo "1994"]
[BlackElo "2406"]
[Annotator "NA"]
[PlyCount "130"]
[EventDate "2019.02.20"]
[EventType "swiss"]
[EventCountry "NOR"]
[SourceTitle "playchess.com"]
[Source "ChessBase"]
[SourceQuality "1"]
[TimeControl "5400+30"]

1. d4 {[%emt 0:00:00]} Nf6 {[%emt 0:00:00]} 2. Nf3 {[%emt 0:00:00]} b6 {[%emt 0:00:00]} 3. Bg5 {[%emt 0:00:00]} Bb7 {[%emt 0:00:00]} 4. Nbd2 {[%emt 0:00:00]} g6 {[%emt 0:00:05]} 5. Bxf6 {[%emt 0:00:05]} exf6 {[%emt 0:00:06]} 6. e3 {[%emt 0:00:09] A47: 1 d4 Nf6 2 Nf3 b6: Torre, London and Colle Systems} f5 {[%emt 0:00:37]} (6... Bg7 7. g3 O-O 8. Bg2 f5 9. O-O d6 10. Ne1 Bxg2 11. Nxg2 Nd7 12. Qf3 Re8 {1-0 (55) Andreikin,D (2705)-Pogromsky,M (2416) Sochi 2017}) 7. c3 {[%emt 0:00:23]} Bg7 {[%emt 0:02:45]} 8. h4 {[%emt 0:02:10]} h5 $146 {[%emt 0:00:21]} ({Predecessor:} 8... d6 9. Qb3 Nc6 10. O-O-O Qd7 11. h5 O-O-O 12. Qa3 {0-1 (34) Wohl,A (2401)-Richardson,J (2312) West Bromwich 2003}) 9. a4 {[%emt 0:06:32]} a5 {[%emt 0:00:50]} 10. Bd3 {[%emt 0:01:04]} O-O {[%emt 0:00:19]} 11. O-O {[%emt 0:01:37]} d6 {[%emt 0:00:40]} 12. Re1 {[%emt 0:01:31]} Nd7 {[%emt 0:00:10]} 13. Rc1 {[%emt 0:02:38]} Nf6 {[%emt 0:00:20]} 14. e4 {[%emt 0:04:56]} fxe4 {[%emt 0:00:10]} 15. Nxe4 {[%emt 0:00:09]} Re8 {[%emt 0:07:22]} 16. Neg5 {[%emt 0:05:11]} Rxe1+ {[%emt 0:00:20]} 17. Qxe1 {[%emt 0:00:20]} Qd7 {[%emt 0:00:23]} 18. Bc4 {[%emt 0:02:49]} Nd5 {[%emt 0:04:22]} 19. Qd1 {[%emt 0:08:41]} Qg4 {[%emt 0:05:07]} 20. g3 {[%emt 0:03:49]} Rf8 {[%emt 0:04:29]} 21. Nh2 {[%emt 0:03:39]} Qc8 {[%emt 0:04:24]} 22. Bf1 {[%emt 0:02:45]} Bh6 {[%emt 0:03:27]} 23. c4 {[%emt 0:04:55]} Nf6 $15 {[%emt 0:01:38]} 24. Nhf3 {[%emt 0:15:28]} Ng4 {[%emt 0:05:30]} 25. Rc3 {[%emt 0:03:40]} f6 {[%emt 0:00:39]} 26. Nh3 {[%emt 0:00:53]} Be4 {[%emt 0:03:02]} 27. Bg2 {[%emt 0:06:17]} Bf5 {[%emt 0:05:04]} 28. Qf1 {[%emt 0:01:43]} Qd7 {[%emt 0:00:52]} 29. Ra3 {[%emt 0:01:51]} Re8 {[%emt 0:00:39]} 30. Kh1 {[%emt 0:00:59]} Be4 {[%emt 0:01:38]} 31. Nhg1 {[%emt 0:00:49]} Qf5 {[%emt 0:01:18]} 32. Nh3 {[%emt 0:03:24]} Kh7 {[%emt 0:05:36]} 33. d5 {[%emt 0:02:50]} Ne5 {[%emt 0:04:36]} 34. Nhg1 {[%emt 0:02:33]} Nd3 {[%emt 0:09:50]} 35. Kh2 {[%emt 0:01:42]} Ne5 {[%emt 0:07:34]} 36. Nxe5 {[%emt 0:02:57]} Qxe5 {[%emt 0:00:55]} 37. Bxe4 {[%emt 0:03:05]} Qxe4 {[%emt 0:00:04]} 38. Rf3 {[%emt 0:01:28]} f5 {[%emt 0:01:34]} 39. b3 {[%emt 0:00:31]} Qc2 {[%emt 0:04:04]} 40. Qd3 {[%emt 0:01:01]} Qa2 {[%emt 0:00:39]} 41. Qd1 {[%emt 0:01:58]} Re4 {[%emt 0:03:18]} 42. Kg2 {[%emt 0:00:25]} Qb2 {[%emt 0:01:31]} 43. Nh3 {[%emt 0:00:26]} Re2 {[%emt 0:00:27]} 44. Ng5+ {[%emt 0:00:24]} Bxg5 {[%emt 0:00:35]} 45. hxg5 {[%emt 0:00:04]} Kg8 {[%emt 0:05:03]} 46. Rf4 {[%emt 0:02:16]} Qe5 {[%emt 0:01:46]} 47. Qd4 {[%emt 0:00:29]} Rb2 {[%emt 0:00:29]} 48. Qxe5 {[%emt 0:00:16]} dxe5 {[%emt 0:00:03]} 49. Rf3 {[%emt 0:00:06]} Kf7 {[%emt 0:00:24]} 50. Rc3 {[%emt 0:00:21]} e4 {[%emt 0:01:10]} 51. Kf1 {[%emt 0:00:11]} Ke7 {[%emt 0:00:35]} 52. c5 {[%emt 0:00:15]} bxc5 {[%emt 0:00:07]} 53. Rxc5 {[%emt 0:00:08]} Kd6 {[%emt 0:00:30]} 54. Rxa5 {[%emt 0:00:19]} Rxb3 {[%emt 0:00:19]} 55. Ra8 {[%emt 0:02:29]} h4 {[%emt 0:02:59]} 56. gxh4 {[%emt 0:00:50]} f4 {[%emt 0:00:07]} 57. Ra6+ {[%emt 0:00:22]} Kxd5 {[%emt 0:00:05]} 58. Rxg6 {[%emt 0:00:31]} f3 {[%emt 0:00:04]} 59. Kg1 {[%emt 0:00:09]} Rb1+ {[%emt 0:00:22]} 60. Kh2 {[%emt 0:00:07]} e3 {[%emt 0:00:06]} 61. fxe3 {[%emt 0:01:34]} f2 {[%emt 0:00:06]} 62. e4+ {[%emt 0:00:40]} Kxe4 {[%emt 0:01:29]} 63. Rf6 {[%emt 0:00:06]} f1=Q {[%emt 0:00:04]} 64. Rxf1 {[%emt 0:00:34]} Rxf1 {[%emt 0:00:05]} 65. g6 {[%emt 0:00:08]} Rf8 {[%emt 0:00:11]} 0-1

[Event "Kragero Resort Chess A 2019"]
[Site "Kragero"]
[Date "2019.02.22"]
[Round "4.19"]
[White "Schouten, Mathias Lind"]
[Black "Doluhanova, Evgeniya"]
[Result "0-1"]
[ECO "C54"]
[WhiteElo "1943"]
[BlackElo "2348"]
[Annotator "NA"]
[PlyCount "52"]
[EventDate "2019.02.20"]
[EventType "swiss"]
[EventCountry "NOR"]
[SourceTitle "playchess.com"]
[Source "ChessBase"]
[SourceQuality "1"]
[TimeControl "5400+30"]

1. e4 {[%emt 0:00:00]} e5 {[%emt 0:01:26]} 2. Nf3 {[%emt 0:00:00]} Nc6 {[%emt 0:00:03]} 3. Bc4 {[%emt 0:00:00]} Bc5 {[%emt 0:00:05]} 4. O-O {[%emt 0:00:00]} Nf6 {[%emt 0:00:23]} 5. d3 {[%emt 0:00:00]} d6 {[%emt 0:00:04]} 6. c3 {[%emt 0:00:02]} h6 {[%emt 0:04:10]} 7. b4 {[%emt 0:01:35]} Bb6 {[%emt 0:00:06]} 8. a4 {[%emt 0:01:51]} a5 {[%emt 0:00:09] C54: Giuoco Piano: 4 c3 Nf6, main lines with 5 d4 and 5 d3} 9. b5 {[%emt 0:00:34]} Ne7 {[%emt 0:00:06]} 10. Be3 {[%emt 0:00:21]} (10. Nbd2 O-O 11. Re1 Ng6 12. Bb3 Re8 13. Nc4 Bc5 14. h3 c6 15. Bd2 Be6 16. bxc6 bxc6 {½-½ (31) Nakamura,H (2793)-Xiong,J (2674) Saint Louis 2017}) 10... O-O {[%emt 0:01:15]} 11. Bxb6 {[%emt 0:02:02]} cxb6 {[%emt 0:00:04]} 12. Re1 {[%emt 0:00:39]} Ng6 {[%emt 0:05:25]} 13. d4 $146 {[%emt 0:02:51]} ({Predecessor:} 13. g3 Kh8 14. Nbd2 Bg4 15. d4 Qc7 16. Rc1 Nh7 17. h4 {½-½ (17) Khukhashvili,S (2206)-Vasquez Ramirez,R (2106) Oropesa del Mar 1999}) 13... Qc7 {[%emt 0:00:10]} 14. Qb3 {[%emt 0:00:18]} Bg4 {[%emt 0:01:34]} 15. Nfd2 {[%emt 0:10:52]} Nf4 {[%emt 0:02:47]} 16. h3 {[%emt 0:01:32]} Bxh3 {[%emt 0:08:21]} 17. gxh3 {[%emt 0:00:07]} Nxh3+ {[%emt 0:00:03]} 18. Kf1 {[%emt 0:01:12]} Nf4 {[%emt 0:00:10]} 19. Rc1 {[%emt 0:10:00]} Qd7 {[%emt 0:26:17]} 20. Ke1 $19 {[%emt 0:02:51]} d5 {[%emt 0:11:31]} 21. exd5 {[%emt 0:02:21]} Rfe8 {[%emt 0:00:33]} 22. dxe5 {[%emt 0:00:51]} Qg4 {[%emt 0:07:31]} 23. e6 {[%emt 0:02:41]} N6xd5 {[%emt 0:00:18]} 24. Ne4 {[%emt 0:01:24]} Rxe6 {[%emt 0:01:14]} 25. Nbd2 {[%emt 0:00:12]} Rae8 {[%emt 0:01:40]} 26. f3 {[%emt 0:01:38]} Qg3+ {[%emt 0:01:02]} 0-1

[Event "Kragero Resort Chess A 2019"]
[Site "Kragero"]
[Date "2019.02.22"]
[Round "4.20"]
[White "Tunsjo, Axel"]
[Black "Gharibyan, Mamikon"]
[Result "0-1"]
[ECO "C50"]
[WhiteElo "1937"]
[BlackElo "2318"]
[Annotator "NA"]
[PlyCount "77"]
[EventDate "2019.02.20"]
[EventType "swiss"]
[EventCountry "NOR"]
[SourceTitle "playchess.com"]
[Source "ChessBase"]
[SourceQuality "1"]
[TimeControl "5400+30"]

1. e4 {[%emt 0:00:00]} e5 {[%emt 0:00:39]} 2. Nf3 {[%emt 0:00:09]} Nc6 {[%emt 0:00:07]} 3. Bc4 {[%emt 0:00:30]} Bc5 {[%emt 0:00:13]} 4. O-O {[%emt 0:00:25]} Nf6 {[%emt 0:00:10]} 5. d3 {[%emt 0:00:50]} d6 {[%emt 0:01:03]} 6. a4 {[%emt 0:01:03]} a5 {[%emt 0:01:25]} 7. c3 {[%emt 0:00:46]} h6 {[%emt 0:07:31]} 8. d4 {[%emt 0:08:00]} exd4 {[%emt 0:04:29]} 9. cxd4 {[%emt 0:00:12]} Bb6 {[%emt 0:00:41]} 10. Qb3 {[%emt 0:08:41]} O-O {[%emt 0:05:09]} 11. e5 {[%emt 0:00:14]} dxe5 {[%emt 0:04:31]} 12. dxe5 {[%emt 0:00:08]} Ng4 {[%emt 0:00:14]} 13. Bf4 {[%emt 0:17:44]} Nd4 {[%emt 0:01:25]} 14. Qc3 {[%emt 0:01:22]} Nxf3+ {[%emt 0:04:51]} 15. gxf3 {[%emt 0:03:47]} Bd4 {[%emt 0:03:32]} 16. Qe1 {[%emt 0:01:26]} Nxe5 {[%emt 0:08:36]} (16... Bxb2 $19 17. Ra2 Qd4 {[%mdl 64] Double Attack}) 17. Bxe5 $17 {[%emt 0:04:04]} Re8 $1 {[%emt 0:00:18]} 18. f4 {[%emt 0:03:39]} Bh3 {[%emt 0:01:40]} 19. Ra3 {[%emt 0:12:56]} Bxf1 {[%emt 0:00:29]} 20. Qxf1 {[%emt 0:03:42]} Bxe5 {[%emt 0:00:12]} 21. fxe5 {[%emt 0:00:05]} Rxe5 {[%emt 0:00:24]} 22. Rf3 {[%emt 0:00:52]} Qg5+ {[%emt 0:00:14]} 23. Kh1 {[%emt 0:00:50]} Rf5 {[%emt 0:03:17]} 24. Rxf5 {[%emt 0:08:00]} Qxf5 {[%emt 0:01:21]} 25. Nc3 {[%emt 0:00:10]} Re8 {[%emt 0:00:43]} 26. Nd5 {[%emt 0:11:00]} Qf3+ {[%emt 0:17:25]} 27. Kg1 {[%emt 0:00:15]} Re5 {[%emt 0:00:25]} 28. Ne3 {[%emt 0:01:38]} Rg5+ {[%emt 0:01:16]} 29. Ng2 {[%emt 0:00:07]} Qh3 {[%emt 0:00:36]} 30. Bd3 {[%emt 0:03:09]} Rh5 {[%emt 0:00:54]} 31. f3 {[%emt 0:01:17]} Qxh2+ {[%emt 0:00:10]} 32. Kf2 {[%emt 0:00:05]} Qe5 {[%emt 0:01:57]} 33. Qe2 {[%emt 0:01:26]} Qd4+ {[%emt 0:00:06]} 34. Kg3 {[%emt 0:00:24]} Re5 {[%emt 0:00:17]} 35. Qd2 {[%emt 0:00:48]} Rd5 {[%emt 0:00:09]} 36. Nf4 {[%emt 0:00:18]} Rg5+ {[%emt 0:00:18]} 37. Kh3 {[%emt 0:00:34]} Qg1 {[%emt 0:00:18]} 38. Qh2 {[%emt 0:01:33]} Qd1 {[%emt 0:00:42]} 39. Be4 {[%emt 0:00:34]} 0-1

[Event "Kragero Resort Chess A 2019"]
[Site "Kragero"]
[Date "2019.02.22"]
[Round "4.21"]
[White "Hobber, Anders"]
[Black "Bergsson, Stefan"]
[Result "1-0"]
[ECO "D00"]
[WhiteElo "2312"]
[BlackElo "2172"]
[Annotator "NA"]
[PlyCount "109"]
[EventDate "2019.02.20"]
[EventType "swiss"]
[EventCountry "NOR"]
[SourceTitle "playchess.com"]
[Source "ChessBase"]
[SourceQuality "1"]
[TimeControl "5400+30"]

1. d4 {[%emt 0:03:39]} Nf6 {[%emt 0:00:00]} 2. Nf3 {[%emt 0:00:38]} g6 {[%emt 0:01:20]} 3. Nc3 {[%emt 0:00:44]} d5 {[%emt 0:00:39]} 4. Bf4 {[%emt 0:00:50]} Bg7 {[%emt 0:00:00]} 5. Nb5 {[%emt 0:00:26]} Na6 {[%emt 0:00:15]} 6. e3 {[%emt 0:01:02]} O-O {[%emt 0:01:27]} 7. h3 {[%emt 0:01:08]} c6 {[%emt 0:02:36]} 8. Nc3 {[%emt 0:00:34]} b5 {[%emt 0:00:45]} 9. Be2 {[%emt 0:04:58]} Nc7 {[%emt 0:01:05]} 10. O-O {[%emt 0:04:07]} a5 {[%emt 0:01:59]} 11. Bd3 {[%emt 0:05:26]} Nce8 {[%emt 0:14:03]} 12. a3 {[%emt 0:10:20]} Nd6 $11 {[%emt 0:02:39]} 13. Be5 {[%emt 0:01:25]} Nc4 {[%emt 0:11:15]} 14. Bxc4 {[%emt 0:01:01]} dxc4 {[%emt 0:03:07]} 15. Bxf6 {[%emt 0:06:53]} Bxf6 {[%emt 0:00:36]} 16. e4 {[%emt 0:05:48]} Bg7 {[%emt 0:01:03]} 17. Re1 {[%emt 0:03:14]} Qb6 {[%emt 0:01:51]} 18. e5 {[%emt 0:02:24]} h6 {[%emt 0:02:39]} 19. Ne4 {[%emt 0:02:33]} Ra7 {[%emt 0:06:04]} 20. Nc5 {[%emt 0:02:24]} Kh7 {[%emt 0:01:05]} 21. Qe2 {[%emt 0:03:43]} Rd8 {[%emt 0:08:52]} 22. Rad1 {[%emt 0:01:28]} Rf8 {[%emt 0:09:47]} 23. c3 {[%emt 0:04:04]} Qd8 {[%emt 0:00:07]} 24. e6 {[%emt 0:05:20]} Qd5 {[%emt 0:01:43]} 25. exf7 {[%emt 0:01:42]} Rxf7 {[%emt 0:01:33]} 26. Ne5 {[%emt 0:02:40]} Rf5 {[%emt 0:01:20]} 27. Ng4 {[%emt 0:03:11]} Rf7 {[%emt 0:04:54]} 28. Ne5 {[%emt 0:05:10]} Rf5 {[%emt 0:00:04]} 29. Ne4 {[%emt 0:02:10]} Rf8 {[%emt 0:06:45]} 30. Ng3 {[%emt 0:00:55]} c5 {[%emt 0:01:02]} 31. Qc2 {[%emt 0:01:43]} Ra6 {[%emt 0:02:27]} 32. dxc5 {[%emt 0:01:44]} Qxc5 {[%emt 0:01:01]} 33. Nd7 {[%emt 0:00:09]} Bxd7 {[%emt 0:01:01]} 34. Rxd7 {[%emt 0:00:03]} Rf7 {[%emt 0:02:52]} 35. Qe2 {[%emt 0:02:45]} Ra7 {[%emt 0:02:49]} 36. Rxa7 {[%emt 0:00:44]} Qxa7 {[%emt 0:00:05]} 37. Ne4 {[%emt 0:00:18]} Qc7 {[%emt 0:03:01]} 38. Nd2 {[%emt 0:01:40]} e5 {[%emt 0:00:23]} 39. a4 {[%emt 0:03:00]} bxa4 {[%emt 0:00:23]} 40. Qxc4 {[%emt 0:01:13]} Qa7 {[%emt 0:00:24]} 41. Ne4 {[%emt 0:00:17]} a3 {[%emt 0:01:01]} 42. bxa3 {[%emt 0:00:12]} a4 {[%emt 0:00:57]} 43. Qe6 {[%emt 0:02:59]} Re7 {[%emt 0:01:16]} 44. Qg4 {[%emt 0:00:43]} Rf7 {[%emt 0:01:29]} 45. Re3 {[%emt 0:00:33]} Qb6 {[%emt 0:00:55]} 46. c4 {[%emt 0:01:06]} Rf4 {[%emt 0:01:31]} 47. Qe2 {[%emt 0:00:28]} Bf8 {[%emt 0:00:31]} 48. Qd3 {[%emt 0:02:01]} Rf7 {[%emt 0:00:21]} 49. Qd5 {[%emt 0:00:37]} Qc7 {[%emt 0:00:35]} 50. c5 {[%emt 0:00:24]} Kg7 {[%emt 0:00:20]} 51. Nd6 {[%emt 0:01:06]} Bxd6 {[%emt 0:00:52]} 52. cxd6 {[%emt 0:00:03]} Qc1+ {[%emt 0:00:13]} 53. Kh2 {[%emt 0:00:02]} Rxf2 {[%emt 0:00:30]} 54. Qxe5+ {[%emt 0:00:16]} Rf6 {[%emt 0:00:19]} 55. Rf3 {[%emt 0:00:19]} 1-0

[Event "Kragero Resort Chess A 2019"]
[Site "Kragero"]
[Date "2019.02.22"]
[Round "4.22"]
[White "Khachatryan, Vahagn"]
[Black "Flasen, Aleksander"]
[Result "1-0"]
[ECO "D05"]
[WhiteElo "2274"]
[BlackElo "2036"]
[Annotator "NA"]
[PlyCount "93"]
[EventDate "2019.02.20"]
[EventType "swiss"]
[EventCountry "NOR"]
[SourceTitle "playchess.com"]
[Source "ChessBase"]
[SourceQuality "1"]
[TimeControl "5400+30"]

1. d4 {[%emt 0:00:00]} Nf6 {[%emt 0:03:28]} 2. Nf3 {[%emt 0:00:00]} e6 {[%emt 0:00:06]} 3. e3 {[%emt 0:00:00]} c5 {[%emt 0:02:14]} 4. Bd3 {[%emt 0:00:28]} d5 {[%emt 0:01:40]} 5. b3 {[%emt 0:00:06]} Nc6 {[%emt 0:02:09]} 6. O-O {[%emt 0:01:21]} Bd6 {[%emt 0:04:23]} 7. Bb2 {[%emt 0:00:13]} O-O {[%emt 0:00:58]} 8. Nbd2 {[%emt 0:01:40]} b6 {[%emt 0:03:32]} 9. Ne5 {[%emt 0:00:31] The position is equal.} Bb7 {[%emt 0:06:44] D05: Colle System with ...e6} 10. f4 {[%emt 0:00:07]} (10. a3 Ne7 11. dxc5 bxc5 12. c4 Ng6 13. Nxg6 hxg6 14. cxd5 exd5 {½-½ (40) Nakamura,H (2763)-Le,Q (2715) chess.com INT 2018}) 10... Ne7 {[%emt 0:02:48]} 11. Qf3 {[%emt 0:03:23]} Qc7 {[%emt 0:05:03]} ({Predecessor:} 11... cxd4 $146 12. exd4 Rc8 13. Rae1 Qc7 14. c3 g6 15. Qh3 Nh5 16. Be2 Ng7 17. Ng4 {0-1 (121) Luong,P (2150)-Wang,J (2391) Greensboro 2018}) 12. Qg3 {[%emt 0:10:48]} Ne4 {[%emt 0:13:09]} 13. Bxe4 {[%emt 0:06:51]} dxe4 {[%emt 0:00:07]} 14. dxc5 {[%emt 0:02:35]} Nf5 {[%emt 0:10:47]} 15. cxd6 {[%emt 0:03:55]} Qxc2 {[%emt 0:01:46]} 16. Qe1 {[%emt 0:02:36]} f6 {[%emt 0:10:58]} 17. Ndc4 {[%emt 0:06:04]} fxe5 {[%emt 0:05:03]} 18. Rf2 {[%emt 0:00:42]} Nxe3 {[%emt 0:02:36]} 19. Rxc2 {[%emt 0:00:19]} Nxc2 {[%emt 0:00:07]} 20. Qc3 {[%emt 0:01:01]} Nxa1 {[%emt 0:00:38]} 21. Qxe5 {[%emt 0:00:07]} Rf7 {[%emt 0:01:40]} 22. Qxe6 {[%emt 0:00:39]} Bc8 {[%emt 0:02:29]} 23. Qe8+ {[%emt 0:07:23]} Rf8 {[%emt 0:00:06]} 24. Qxe4 {[%emt 0:00:16]} Bf5 {[%emt 0:00:49]} 25. Qd5+ {[%emt 0:00:25]} Kh8 {[%emt 0:00:13]} 26. Bxa1 {[%emt 0:00:05]} Rae8 {[%emt 0:01:29]} 27. Ne5 {[%emt 0:00:38]} Be6 {[%emt 0:00:58]} 28. Qb7 {[%emt 0:00:24]} Kg8 {[%emt 0:01:13]} 29. d7 {[%emt 0:02:37]} Rd8 {[%emt 0:01:09]} 30. Qxa7 {[%emt 0:00:35]} Bxd7 {[%emt 0:02:33]} 31. Qxb6 {[%emt 0:01:59]} Bf5 {[%emt 0:01:39]} 32. Bd4 {[%emt 0:01:56]} Rfe8 {[%emt 0:03:45]} 33. Nc6 {[%emt 0:01:44]} Rd6 {[%emt 0:02:27]} 34. Ne7+ {[%emt 0:00:42]} Rxe7 {[%emt 0:00:07]} 35. Qxd6 {[%emt 0:00:16]} Rd7 {[%emt 0:00:24]} 36. Qe5 {[%emt 0:00:11]} Bg6 {[%emt 0:00:51]} 37. f5 {[%emt 0:00:23]} Bh5 {[%emt 0:00:24]} 38. g4 {[%emt 0:00:18]} Rxd4 {[%emt 0:00:40]} 39. Qxd4 {[%emt 0:00:08]} Be8 {[%emt 0:00:10]} 40. Qd5+ {[%emt 0:00:25]} Kf8 {[%emt 0:00:11]} 41. Qd6+ {[%emt 0:00:05]} Kf7 {[%emt 0:00:23]} 42. g5 {[%emt 0:00:05]} Bb5 {[%emt 0:00:46]} 43. Qd5+ {[%emt 0:00:05]} Kf8 {[%emt 0:00:04]} 44. Qxb5 {[%emt 0:00:04]} h5 {[%emt 0:00:12]} 45. Qd7 {[%emt 0:00:08]} g6 {[%emt 0:00:19]} 46. fxg6 {[%emt 0:00:04]} h4 {[%emt 0:00:06]} 47. Qf7# {[%emt 0:00:03]} 1-0

[Event "Kragero Resort Chess A 2019"]
[Site "Kragero"]
[Date "2019.02.22"]
[Round "4.23"]
[White "Mkrtchyan, Anahit D."]
[Black "Kazarian, Anna-Maja"]
[Result "1-0"]
[ECO "C05"]
[WhiteElo "1841"]
[BlackElo "2189"]
[Annotator "NA"]
[PlyCount "137"]
[EventDate "2019.02.20"]
[EventType "swiss"]
[EventCountry "NOR"]
[SourceTitle "playchess.com"]
[Source "ChessBase"]
[SourceQuality "1"]
[TimeControl "5400+30"]

1. e4 {[%emt 0:00:00]} e6 {[%emt 0:00:00]} 2. d4 {[%emt 0:00:00]} d5 {[%emt 0:00:00]} 3. Nd2 {[%emt 0:00:00]} Nf6 {[%emt 0:00:21]} 4. Bd3 {[%emt 0:00:07]} c5 {[%emt 0:01:33]} 5. exd5 {[%emt 0:01:32]} Qxd5 {[%emt 0:03:44]} 6. Ngf3 {[%emt 0:00:51]} cxd4 {[%emt 0:01:43]} 7. Bc4 {[%emt 0:05:48]} Qd6 {[%emt 0:16:16]} 8. O-O {[%emt 0:02:26]} Nc6 {[%emt 0:00:15]} 9. Nb3 {[%emt 0:01:24]} e5 {[%emt 0:03:58]} 10. Re1 {[%emt 0:10:15]} Be7 {[%emt 0:02:26]} 11. h3 {[%emt 0:10:56]} O-O {[%emt 0:02:08]} 12. Bb5 {[%emt 0:03:07]} Nd7 {[%emt 0:02:40]} 13. Qe2 {[%emt 0:01:07]} Bf6 {[%emt 0:13:33]} 14. Nbd2 {[%emt 0:12:12]} Nc5 {[%emt 0:16:09]} 15. Nc4 {[%emt 0:13:21]} Qd5 {[%emt 0:01:07]} 16. Ncxe5 {[%emt 0:06:35]} Bxe5 {[%emt 0:10:48]} 17. Bxc6 {[%emt 0:03:46]} Bh2+ {[%emt 0:05:51]} 18. Kxh2 {[%emt 0:00:11]} bxc6 {[%emt 0:00:05]} 19. Bf4 {[%emt 0:01:03]} d3 {[%emt 0:02:13]} 20. Qe5 {[%emt 0:08:41]} dxc2 {[%emt 0:04:04]} 21. Qxd5 {[%emt 0:00:08]} cxd5 {[%emt 0:00:04]} 22. Bd6 {[%emt 0:00:03]} Nd3 {[%emt 0:00:29]} 23. Bxf8 {[%emt 0:00:08]} Kxf8 {[%emt 0:01:13]} 24. Nd4 {[%emt 0:00:31]} Nxe1 {[%emt 0:04:47]} 25. Rxe1 {[%emt 0:00:04]} Bd7 {[%emt 0:01:38]} 26. Nxc2 {[%emt 0:00:06]} Rc8 {[%emt 0:01:33]} 27. Nd4 {[%emt 0:00:18]} Rc4 {[%emt 0:00:25]} 28. Rd1 {[%emt 0:00:07]} a5 {[%emt 0:01:33]} 29. Rd2 {[%emt 0:02:24]} Ke7 {[%emt 0:00:47]} 30. Kg3 {[%emt 0:00:21]} Kd6 {[%emt 0:00:16]} 31. Kf4 {[%emt 0:00:33]} a4 {[%emt 0:00:22]} 32. Ke3 {[%emt 0:00:53]} Rc1 {[%emt 0:00:14]} 33. Nf3 {[%emt 0:03:01]} Ra1 {[%emt 0:00:51]} 34. a3 {[%emt 0:00:26]} Rc1 {[%emt 0:00:22]} 35. Kf4 {[%emt 0:04:02]} f6 {[%emt 0:01:02]} 36. h4 {[%emt 0:00:25]} Kc5 {[%emt 0:00:47]} 37. Nd4 {[%emt 0:02:13]} Re1 {[%emt 0:01:17]} 38. f3 {[%emt 0:01:10]} Rh1 {[%emt 0:01:20]} 39. g3 {[%emt 0:01:16]} h6 {[%emt 0:00:02]} 40. Ne2 {[%emt 0:01:24]} Re1 {[%emt 0:00:37]} 41. Rc2+ {[%emt 0:00:59]} Kd6 {[%emt 0:00:05]} 42. g4 {[%emt 0:00:00]} g5+ {[%emt 0:00:38]} 43. hxg5 {[%emt 0:00:11]} hxg5+ {[%emt 0:00:08]} 44. Kg3 {[%emt 0:00:07]} Rd1 {[%emt 0:00:44]} 45. Nc3 {[%emt 0:01:04]} Rd3 {[%emt 0:00:16]} 46. Kf2 {[%emt 0:00:36]} d4 {[%emt 0:00:41]} 47. Ne4+ {[%emt 0:00:04]} Ke7 {[%emt 0:01:40]} 48. Re2 {[%emt 0:01:08]} Kd8 {[%emt 0:00:39]} 49. Nxf6 {[%emt 0:00:31]} Bc6 {[%emt 0:00:25]} 50. Ne4 {[%emt 0:00:27]} Bxe4 {[%emt 0:00:38]} 51. Rxe4 {[%emt 0:00:12]} Rd2+ {[%emt 0:00:30]} 52. Ke1 {[%emt 0:00:24]} Rxb2 {[%emt 0:00:26]} 53. Rxd4+ {[%emt 0:00:02]} Kc7 {[%emt 0:00:30]} 54. Rxa4 {[%emt 0:00:02]} Ra2 {[%emt 0:00:14]} 55. Ra5 {[%emt 0:00:07]} Kb6 {[%emt 0:00:50]} 56. Rxg5 {[%emt 0:00:07]} Rxa3 {[%emt 0:00:02]} 57. Kf2 {[%emt 0:00:04]} Kc6 {[%emt 0:00:04]} 58. Re5 {[%emt 0:00:05]} Kd6 {[%emt 0:00:04]} 59. Re1 {[%emt 0:00:06]} Kd5 {[%emt 0:00:31]} 60. Kg3 {[%emt 0:00:04]} Kd6 {[%emt 0:00:11]} 61. g5 {[%emt 0:00:05]} Kd5 {[%emt 0:00:13]} 62. Kg4 {[%emt 0:00:05]} Ra2 {[%emt 0:00:15]} 63. g6 {[%emt 0:00:14]} Rg2+ {[%emt 0:00:24]} 64. Kf5 {[%emt 0:00:04]} Kd6 {[%emt 0:00:09]} 65. f4 {[%emt 0:00:09]} Kd7 {[%emt 0:00:36]} 66. Kf6 {[%emt 0:00:05]} Kd6 {[%emt 0:00:56]} 67. g7 {[%emt 0:00:05]} Kd7 {[%emt 0:00:30]} 68. f5 {[%emt 0:00:05]} Rg3 {[%emt 0:00:49]} 69. Kf7 {[%emt 0:00:06]} 1-0

[Event "Kragero Resort Chess A 2019"]
[Site "Kragero"]
[Date "2019.02.22"]
[Round "4.24"]
[White "Vitenberg, Noam Aviv"]
[Black "Sebastian, Andreas"]
[Result "1-0"]
[ECO "E20"]
[WhiteElo "2180"]
[BlackElo "1962"]
[Annotator "NA"]
[PlyCount "67"]
[EventDate "2019.02.20"]
[EventType "swiss"]
[EventCountry "NOR"]
[SourceTitle "playchess.com"]
[Source "ChessBase"]
[SourceQuality "1"]
[TimeControl "5400+30"]

1. Nf3 {[%emt 0:00:00]} Nf6 {[%emt 0:00:00]} 2. c4 {[%emt 0:00:00]} e6 {[%emt 0:01:20]} 3. Nc3 {[%emt 0:00:00]} c5 {[%emt 0:00:52]} 4. g3 {[%emt 0:01:13]} Nc6 {[%emt 0:00:05]} 5. d4 {[%emt 0:01:56]} cxd4 {[%emt 0:01:10]} 6. Nxd4 {[%emt 0:00:13]} d5 {[%emt 0:10:23]} 7. cxd5 {[%emt 0:03:24]} Nxd5 {[%emt 0:04:09]} 8. Nxc6 {[%emt 0:00:24]} bxc6 {[%emt 0:00:45]} 9. Bg2 {[%emt 0:00:08]} Bb4 {[%emt 0:08:34]} 10. Bd2 {[%emt 0:04:47]} O-O {[%emt 0:04:42]} 11. O-O {[%emt 0:00:31]} Rb8 {[%emt 0:02:20]} 12. Qa4 {[%emt 0:10:42]} Be7 {[%emt 0:03:55]} 13. Qc2 {[%emt 0:08:21]} Ba6 {[%emt 0:04:33]} 14. Rfd1 {[%emt 0:05:13]} Bf6 {[%emt 0:08:26]} 15. Rac1 {[%emt 0:12:31]} Qe7 {[%emt 0:01:34]} 16. Bf3 {[%emt 0:03:45]} Rfd8 {[%emt 0:06:13]} 17. b3 {[%emt 0:07:09]} Nb4 {[%emt 0:09:34]} 18. Qb1 {[%emt 0:00:48]} Bd4 {[%emt 0:02:39]} 19. Na4 {[%emt 0:04:28]} Bb5 {[%emt 0:02:31]} 20. Nc3 {[%emt 0:11:32]} Nd5 {[%emt 0:05:51]} 21. Ne4 {[%emt 0:03:20]} h6 {[%emt 0:06:33]} 22. e3 {[%emt 0:03:33]} Be5 {[%emt 0:03:17]} 23. Nc5 {[%emt 0:00:22]} Qf6 {[%emt 0:00:35]} 24. Kg2 {[%emt 0:02:38]} Bb2 {[%emt 0:01:04]} 25. Rc2 {[%emt 0:01:06]} Ba3 {[%emt 0:01:13]} 26. Ba5 {[%emt 0:00:58]} Nb6 {[%emt 0:02:02]} 27. Bxb6 {[%emt 0:00:44]} axb6 {[%emt 0:01:40]} 28. Nd7 {[%emt 0:00:30]} Qg6 {[%emt 0:04:31]} 29. Nxb8 {[%emt 0:00:18]} Rxb8 {[%emt 0:00:06]} 30. Rcd2 {[%emt 0:01:19]} Qf6 {[%emt 0:00:18]} 31. Qe4 {[%emt 0:00:32]} g6 {[%emt 0:01:18]} 32. Qf4 {[%emt 0:00:21]} Qxf4 {[%emt 0:00:36]} 33. gxf4 {[%emt 0:00:21]} Be7 {[%emt 0:00:11]} 34. a4 {[%emt 0:00:43]} 1-0